bitfinex/quotes_ETHUSD_20250411
["timestamp","ask_amount","ask_price","bid_price","bid_amount"]
[1744368193456,6.37064,1569.7,1569.6,0.82899505]
[1744368194766,9.866886,1569.7,1569.6,0.35568829]
[1744368194945,6.37064,1569.7,1569.6,0.35568829]
[1744368196864,6.37145,1569.5,1569.4,0.35568829]
[1744368199124,7.89445,1569.5,1569.4,0.35568829]
[1744368199324,9.958143,1569.5,1569.4,0.35568829]
[1744368200052,6.37257,1569.3,1569.1,0.398326]
[1744368200225,12.74514,1569.3,1569.1,0.398326]
[1744368201265,12.74514,1569.3,1569.2,0.35530217]
[1744368201757,12.74514,1569.3,1569.2,0.8472895]
[1744368201964,6.37257,1569.3,1569.2,0.8472895]
[1744368203146,6.37257,1569.3,1569.2,0.49198733]
[1744368205467,6.37257,1569.3,1569.2,0.84717796]
[1744368208077,6.37159,1569.5,1569.3,3.0]
[1744368208369,12.74322,1569.5,1569.4,0.49198733]
[1744368208572,12.74322,1569.5,1569.4,0.84717796]
[1744368209572,12.74322,1569.5,1569.4,1.39717796]
[1744368209573,6.37159,1569.5,1569.4,1.39717796]
[1744368210638,6.37094,1569.7,1569.5,3.0]
[1744368210835,6.37037,1569.8,1569.5,5.6163988]
[1744368211038,6.36943,1570.0,1569.7,0.55]
[1744368211261,12.73869,1570.1,1569.8,4.5395]
[1744368211492,12.73869,1570.1,1569.9,0.49198733]
[1744368211895,1.6151,1570.3,1570.0,0.70524304]
[1744368212106,6.36902,1570.1,1570.0,0.70524304]
[1744368213012,6.36902,1570.1,1570.0,1.06033441]
[1744368215525,7.642803,1570.1,1570.0,1.06033441]
[1744368216052,7.642803,1570.1,1570.0,0.56834708]
[1744368216385,7.642803,1570.1,1570.0,0.21325571]
[1744368216797,9.168303,1570.1,1570.0,0.21325571]
[1744368218953,9.168303,1570.1,1570.0,0.69707258]
[1744368219153,6.36881,1570.2,1570.0,0.69707258]
[1744368219450,12.7366,1570.3,1570.1,3.0]
[1744368219623,12.7366,1570.3,1570.1,3.48381687]
[1744368220005,12.7366,1570.3,1570.2,0.83924156]
[1744368221243,14.01026,1570.3,1570.2,0.83924156]
[1744368221446,14.01026,1570.3,1570.2,0.35542469]
[1744368221752,6.36861,1570.2,1570.1,0.35542469]
[1744368222107,6.36861,1570.2,1570.1,0.8388125]
[1744368222428,7.90431,1570.2,1570.1,0.8388125]
[1744368222609,10.095767,1570.2,1570.1,0.8388125]
[1744368222810,10.095767,1570.2,1570.1,0.35542469]
[1744368223009,7.90431,1570.2,1570.1,0.35542469]
[1744368223344,6.36902,1570.1,1570.0,0.21325571]
[1744368223711,6.36902,1570.1,1570.0,0.69666516]
[1744368224442,6.36902,1570.1,1570.0,1.05186206]
[1744368224613,6.36861,1570.2,1570.0,1.05186206]
[1744368225120,12.73668,1570.3,1570.0,1.05186206]
[1744368225342,12.73668,1570.3,1570.1,0.48340945]
[1744368225523,6.36792,1570.4,1570.1,0.83860635]
[1744368225727,6.36792,1570.4,1570.2,3.48340945]
[1744368226054,6.3682,1570.3,1570.2,0.48340945]
[1744368226260,6.36861,1570.2,1570.1,0.3551969]
[1744368226756,6.36902,1570.1,1570.0,0.21325571]
[1744368226956,6.36902,1570.1,1570.0,0.69623515]
[1744368227608,6.36902,1570.1,1570.0,1.05119365]
[1744368230252,8.88192121,1570.1,1570.0,1.05119365]
[1744368230454,6.36902,1570.1,1570.0,1.05119365]
[1744368230631,6.36861,1570.2,1570.0,1.05119365]
[1744368230816,6.36861,1570.2,1570.1,3.48297944]
[1744368231021,6.36832,1570.3,1570.1,4.38793794]
[1744368231917,6.36832,1570.3,1570.2,0.48297944]
[1744368232453,6.36832,1570.3,1570.2,0.83793794]
[1744368234561,6.36705,1570.6,1570.3,8.50414]
[1744368234726,12.73341,1570.7,1570.4,9.36769]
[1744368235255,12.73341,1570.7,1570.5,0.48297944]
[1744368235758,6.36665,1570.7,1570.6,0.3549585]
[1744368236170,6.36846,1570.3,1570.0,6.58256571]
[1744368236345,12.73687,1570.3,1570.1,3.0]
[1744368236546,1.429883,1570.7,1570.1,7.92863]
[1744368236863,12.7351,1570.5,1570.3,0.55]
[1744368237041,6.36751,1570.5,1570.3,0.55]
[1744368237249,6.36701,1570.6,1570.4,3.0]
[1744368237449,12.73419,1570.6,1570.4,3.0]
[1744368239172,6.36701,1570.6,1570.5,1.6183]
[1744368239971,12.73424,1570.6,1570.4,3.0]
[1744368240274,6.3668,1570.7,1570.5,0.55]
[1744368240566,6.36739,1570.5,1570.4,4.20145517]
[1744368240768,6.36686,1570.7,1570.4,0.55]
[1744368240968,6.3675,1570.5,1570.3,2.09647173]
[1744368241166,12.73505,1570.5,1570.3,5.09647173]
[1744368241493,6.36861,1570.2,1570.1,1.5464]
[1744368241865,6.36831,1570.3,1570.1,1.5464]
[1744368242187,6.36831,1570.3,1570.1,4.5464]
[1744368242393,6.3675,1570.5,1570.2,0.55]
[1744368242716,12.73503,1570.5,1570.2,6.91846]
[1744368242989,12.73503,1570.5,1570.2,8.44982812]
[1744368243894,6.36712,1570.6,1570.4,0.55]
[1744368244048,12.73429,1570.6,1570.4,3.55]
[1744368244391,6.36782,1570.4,1570.2,4.53136812]
[1744368244567,12.73596,1570.4,1570.2,3.0]
[1744368244895,12.7358,1570.4,1570.2,3.0]
[1744368245048,6.3682,1570.3,1570.2,3.55]
[1744368245252,6.36782,1570.4,1570.2,3.0]
[1744368245485,12.73511,1570.5,1570.3,0.55]
[1744368245788,6.3682,1570.3,1570.2,3.0]
[1744368246092,6.36861,1570.2,1570.1,0.47989117]
[1744368246398,6.36861,1570.2,1570.0,3.21325571]
[1744368246399,6.36902,1570.1,1570.0,0.21325571]
[1744368246691,8.279665,1570.1,1570.0,0.21325571]
[1744368247685,9.838765,1570.1,1570.0,0.21325571]
[1744368248281,9.838765,1570.1,1570.0,0.69054506]
[1744368248658,9.838765,1570.1,1570.0,0.21325571]
[1744368250159,9.838765,1570.1,1570.0,5.71e-06]
[1744368252861,12.838765,1570.1,1570.0,5.71e-06]
[1744368254253,6.37267,1569.2,1569.1,1.42080189]
[1744368254458,6.37267,1569.2,1569.1,1.42456085]
[1744368254659,6.37247,1569.3,1569.1,1.42456085]
[1744368254859,6.37247,1569.3,1569.2,0.47623485]
[1744368256462,6.37247,1569.3,1569.1,0.398326]
[1744368256894,6.37193,1569.4,1569.1,3.398326]
[1744368257101,6.37193,1569.4,1569.2,4.5368]
[1744368257787,6.37156,1569.5,1569.2,4.5368]
[1744368257981,6.37156,1569.5,1569.3,0.47528747]
[1744368258386,12.7415,1569.7,1569.4,3.0]
[1744368258582,12.7415,1569.7,1569.4,3.47528747]
[1744368258583,12.74143,1569.7,1569.4,3.47528747]
[1744368258784,6.37064,1569.7,1569.4,3.47528747]
[1744368258970,12.7415,1569.7,1569.5,1.98132875]
[1744368259170,6.37064,1569.7,1569.5,1.98132875]
[1744368259789,6.36983,1569.9,1569.6,3.55]
[1744368260098,6.36983,1569.9,1569.6,4.03226227]
[1744368260304,6.37025,1569.8,1569.6,4.03226227]
[1744368260486,6.37064,1569.7,1569.6,3.0]
[1744368260681,6.36985,1569.9,1569.6,3.0]
[1744368260886,6.36985,1569.9,1569.6,4.61015419]
[1744368261297,6.36985,1569.9,1569.7,0.47489531]
[1744368261515,12.73986,1569.9,1569.7,0.47489531]
[1744368261689,6.37023,1569.8,1569.7,0.47489531]
[1744368262100,6.37023,1569.8,1569.4,13.29339]
[1744368262272,6.37057,1569.8,1569.4,11.001169]
[1744368262599,6.37057,1569.8,1569.5,2.03753206]
[1744368262600,6.37084,1569.7,1569.5,2.03753206]
[1744368263197,6.37084,1569.7,1569.5,1.5625]
[1744368263405,12.74167,1569.7,1569.5,1.5625]
[1744368263570,0.50898,1569.6,1569.5,1.5625]
[1744368264179,0.50898,1569.6,1569.5,2.03764347]
[1744368264376,6.88002,1569.6,1569.5,0.47514347]
[1744368265168,10.350489,1569.6,1569.5,0.47514347]
[1744368265371,10.350489,1569.6,1569.2,3.0]
[1744368265372,6.37215,1569.4,1569.2,3.0]
[1744368265570,12.74437,1569.4,1569.2,3.0]
[1744368265770,6.37226,1569.3,1569.2,3.0]
[1744368265967,12.74437,1569.4,1569.2,3.0]
[1744368266204,12.74437,1569.4,1569.3,0.47545065]
[1744368268176,6.37215,1569.4,1569.3,0.47545065]
[1744368269024,6.37153,1569.5,1569.3,0.47545065]
[1744368269308,12.74332,1569.5,1569.4,0.47545065]
[1744368269912,12.74332,1569.5,1569.3,0.47545065]
[1744368269913,6.37186,1569.4,1569.3,0.47545065]
[1744368272406,14.655605,1569.4,1569.2,0.47545065]
[1744368272606,12.7441,1569.4,1569.2,0.47545065]
[1744368273008,6.37226,1569.3,1569.2,0.47545065]
[1744368273682,6.37267,1569.2,1569.1,0.398326]
[1744368274047,6.37226,1569.3,1568.2,1.5588]
[1744368274179,6.3744,1568.8,1568.5,0.47095633]
[1744368274386,6.3744,1568.8,1568.6,0.47701979]
[1744368274690,6.3744,1568.8,1568.7,0.35419853]
[1744368275086,6.3744,1568.8,1568.7,0.83121832]
[1744368275310,6.37393,1568.9,1568.7,0.83121832]
[1744368275514,6.37429,1568.8,1568.7,0.83121832]
[1744368276219,6.37393,1568.9,1568.7,0.83121832]
[1744368276422,6.37429,1568.8,1568.7,0.83121832]
[1744368277127,6.37393,1568.9,1568.7,0.83121832]
[1744368277279,6.37357,1569.0,1568.8,0.55]
[1744368277622,6.37315,1569.1,1568.8,2.2012]
[1744368277804,0.50898,1569.1,1568.9,7.20491832]
[1744368277978,0.50898,1569.1,1568.9,15.41930015]
[1744368278180,0.50898,1569.1,1569.0,3.0]
[1744368278381,0.50898,1569.1,1569.0,3.47701979]
[1744368278778,0.50898,1569.1,1569.0,10.40049979]
[1744368279003,0.50898,1569.1,1569.0,11.97829979]
[1744368279190,0.50898,1569.1,1569.0,14.38717933]
[1744368279397,0.50898,1569.1,1569.0,14.86616907]
[1744368284624,0.50898,1569.1,1569.0,8.49268907]
[1744368285123,0.50898,1569.1,1569.0,5.88800806]
[1744368287024,0.50898,1569.1,1569.0,12.87521949]
[1744368287212,0.50898,1569.1,1569.0,12.81148806]
[1744368287551,6.37212,1569.4,1569.1,6.92297]
[1744368287853,6.37186,1569.4,1569.2,0.83121832]
[1744368288015,6.37226,1569.3,1569.2,0.83121832]
[1744368289050,12.74391,1569.4,1569.2,0.83121832]
[1744368289250,12.74389,1569.4,1569.2,0.83121832]
[1744368289437,6.37157,1569.5,1569.3,0.47701979]
[1744368289815,14.24695,1569.6,1569.3,0.47701979]
[1744368290164,6.37112,1569.6,1569.4,0.47701979]
[1744368290328,6.37077,1569.7,1569.4,6.84878979]
[1744368290524,12.74157,1569.7,1569.5,0.35419853]
[1744368290724,6.37104,1569.6,1569.5,0.83121832]
[1744368291122,8.282306,1569.6,1569.5,0.83121832]
[1744368291322,8.282306,1569.6,1569.5,0.47701979]
[1744368291956,8.282306,1569.6,1569.0,2.69038974]
[1744368291957,7.95945,1569.5,1569.4,0.47701979]
[1744368292768,12.74514,1569.3,1569.1,0.47701979]
[1744368293062,12.74514,1569.3,1569.2,0.47701979]
[1744368293463,6.37226,1569.3,1569.2,0.47701979]
[1744368293951,6.37226,1569.3,1569.2,0.82215769]
[1744368295033,12.74399,1569.4,1569.2,0.82215769]
[1744368295234,14.177189,1569.4,1569.3,0.3451379]
[1744368295572,14.177189,1569.4,1569.3,0.82215769]
[1744368300177,7.805129,1569.4,1569.3,0.82215769]
[1744368300473,6.37193,1569.4,1569.3,0.82215769]
[1744368301980,6.37193,1569.4,1569.3,1.01035385]
[1744368303876,6.37193,1569.4,1569.3,1.61035385]
[1744368307076,1.6417,1569.7,1569.3,4.61035385]
[1744368307276,6.36986,1569.9,1569.5,6.37144]
[1744368307277,6.36996,1569.9,1569.5,6.37144]
[1744368307475,6.37025,1569.8,1569.6,0.55]
[1744368307663,12.74063,1569.8,1569.6,0.55]
[1744368307979,8.00017,1570.1,1569.7,2.37055769]
[1744368308285,4.7469617,1570.2,1570.0,0.55]
[1744368308576,4.7469617,1570.2,1570.0,14.87946]
[1744368309044,11.1151917,1570.3,1570.1,0.3451379]
[1744368309243,6.36861,1570.2,1570.1,0.82215769]
[1744368309446,13.02660087,1570.3,1570.1,0.82215769]
[1744368309683,19.39501087,1570.3,1570.2,0.47701979]
[1744368310845,6.36942,1570.0,1569.9,0.47701979]
[1744368311285,6.36942,1570.0,1569.9,0.82168141]
[1744368311482,8.437946,1570.0,1569.9,0.82168141]
[1744368312187,8.437946,1570.0,1569.9,0.47701979]
[1744368312692,6.37064,1569.7,1569.6,0.47701979]
[1744368313589,7.90034,1569.7,1569.6,0.47701979]
[1744368314272,6.37145,1569.5,1569.4,0.47701979]
[1744368314861,6.37145,1569.5,1569.4,1.07701979]
[1744368315062,8.282845,1569.5,1569.4,1.07701979]
[1744368316188,6.37145,1569.5,1569.4,1.07701979]
[1744368316357,6.37039,1569.8,1569.5,6.92133]
[1744368316560,6.37064,1569.7,1569.6,0.3452462]
[1744368316775,7.007704,1569.7,1569.6,0.82226599]
[1744368317796,7.007704,1569.7,1569.6,0.47701979]
[1744368318154,6.36983,1569.9,1569.6,2.05761979]
[1744368318354,6.36983,1569.9,1569.7,0.47701979]
[1744368318355,6.37036,1569.8,1569.7,0.47701979]
[1744368320104,6.37036,1569.8,1569.7,0.82236801]
[1744368321000,6.37036,1569.8,1569.7,0.47701979]
[1744368321198,9.847282,1569.8,1569.7,0.47701979]
[1744368323167,7.93626,1569.8,1569.7,0.47701979]
[1744368324172,6.37186,1569.4,1569.3,0.18819616]
[1744368324612,7.90236,1569.4,1569.3,6.16e-06]
[1744368324784,6.37493,1568.7,1568.5,10.49664733]
[1744368324983,6.37493,1568.7,1568.5,8.93224733]
[1744368324984,6.37511,1568.6,1568.5,8.93224733]
[1744368325170,6.37511,1568.6,1568.5,9.27867121]
[1744368326120,6.37511,1568.6,1568.5,7.33e-06]
[1744368326416,7.94613,1568.3,1568.2,10.34260217]
[1744368326790,7.94613,1568.3,1568.2,2.17e-06]
[1744368327617,7.94613,1568.3,1567.9,14.5736667]
[1744368327618,6.37755,1568.0,1567.9,14.5736667]
[1744368327780,7.97675,1568.0,1567.9,14.5736667]
[1744368328318,7.97675,1568.0,1567.9,6.7e-06]
[1744368328478,9.412157,1568.0,1567.9,6.7e-06]
[1744368329533,1.5992,1568.0,1567.9,6.7e-06]
[1744368329686,6.3768,1568.2,1567.5,2.036826]
[1744368329687,6.37673,1568.2,1567.5,2.036826]
[1744368329887,1.563,1567.9,1567.5,0.398326]
[1744368330123,6.37917,1567.6,1567.5,0.398326]
[1744368333808,7.90867,1567.6,1567.5,0.398326]
[1744368335744,6.37894,1567.7,1567.5,0.398326]
[1744368336340,6.37917,1567.6,1567.5,0.398326]
[1744368339075,12.75791,1567.7,1567.5,0.398326]
[1744368339383,6.37917,1567.6,1567.5,0.398326]
[1744368342482,6.3796,1567.5,1567.2,4.509]
[1744368343159,12.75958,1567.5,1567.2,4.509]
[1744368343360,6.38,1567.4,1567.2,3.0]
[1744368343879,7.655668,1567.5,1567.2,3.0]
[1744368343880,14.035498,1567.5,1567.2,3.0]
[1744368344176,12.75954,1567.5,1567.2,3.0]
[1744368344547,6.3801,1567.4,1567.2,3.0]
[1744368344863,12.76022,1567.4,1567.2,3.0]
[1744368345259,6.38011,1567.4,1567.0,1.9913323]
[1744368345465,6.3804,1567.3,1567.0,4.9913323]
[1744368345662,12.76095,1567.3,1567.0,4.9913323]
[1744368346046,6.38089,1567.2,1567.0,1.5169]
[1744368346375,12.76277,1567.1,1566.9,1.24308421]
[1744368346675,12.76285,1567.1,1566.9,1.24308421]
[1744368347275,6.38217,1566.9,1566.5,7.89608]
[1744368347456,6.38217,1566.9,1566.6,0.46648227]
[1744368347656,6.38261,1566.8,1566.5,1.5126]
[1744368348158,6.38261,1566.8,1566.4,6.38392]
[1744368348353,12.76519,1566.8,1566.4,12.76786]
[1744368348564,12.76439,1566.9,1566.6,3.0]
[1744368349471,6.38249,1566.8,1566.6,3.0]
[1744368349976,6.38212,1566.9,1566.6,3.0]
[1744368350183,6.38212,1566.9,1566.6,10.98507]
[1744368350679,12.76433,1566.9,1566.6,10.98507]
[1744368350898,6.38393,1566.5,1566.1,6.38512]
[1744368351180,6.3838,1566.5,1566.2,6.38474]
[1744368351550,6.38287,1566.7,1566.3,6.3841]
[1744368351883,6.38204,1566.9,1566.4,1.5123]
[1744368352094,6.38084,1567.2,1566.9,4.5123]
[1744368352305,6.38121,1567.1,1566.6,4.5123]
[1744368352480,6.38104,1567.2,1567.0,0.03156205]
[1744368352787,6.38121,1567.1,1567.0,0.03156205]
[1744368353454,6.38121,1567.1,1567.0,0.50101805]
[1744368353986,6.38121,1567.1,1567.0,0.03156205]
[1744368354350,8.447149,1567.1,1567.0,0.03156205]
[1744368355278,8.447149,1567.1,1567.0,0.50217984]
[1744368355794,12.76196,1567.2,1567.0,0.50217984]
[1744368355976,6.37968,1567.5,1567.1,6.93094]
[1744368356283,12.75957,1567.5,1567.2,0.81410232]
[1744368356455,12.76021,1567.4,1567.2,0.81410232]
[1744368356653,6.38039,1567.3,1567.2,0.81410232]
[1744368356851,7.23111647,1567.3,1567.2,0.34348453]
[1744368357051,7.23111647,1567.3,1567.2,0.81471555]
[1744368357585,6.37963,1567.5,1567.2,0.81471555]
[1744368357794,6.37963,1567.5,1567.2,7.19536555]
[1744368358014,12.75943,1567.5,1567.3,0.47123102]
[1744368358201,8.04419,1567.4,1567.3,0.47123102]
[1744368358351,8.46035,1567.4,1567.3,0.47123102]
[1744368358552,6.37999,1567.4,1567.3,0.81471555]
[1744368358967,12.75938,1567.5,1567.3,0.81471555]
[1744368359283,6.37926,1567.6,1567.3,0.81471555]
[1744368359597,6.37885,1567.7,1567.4,0.47123102]
[1744368359754,6.37845,1567.8,1567.4,6.85099102]
[1744368360077,12.75788,1567.7,1567.5,0.81471555]
[1744368360259,6.37844,1567.8,1567.5,0.81471555]
[1744368360453,6.37812,1567.9,1567.6,6.85036102]
[1744368360655,6.37812,1567.9,1567.6,0.47123102]
[1744368360868,6.37761,1568.0,1567.7,6.37862]
[1744368361081,6.37761,1568.0,1567.8,0.34348453]
[1744368361449,6.37761,1568.0,1567.8,3.34348453]
[1744368361666,6.37681,1568.2,1567.9,0.47123102]
[1744368361980,4.74872742,1568.5,1568.0,8.01101]
[1744368361981,6.37624,1568.4,1568.0,8.01101]
[1744368362155,6.37634,1568.3,1568.1,0.47123102]
[1744368362355,4.74872742,1568.5,1568.1,7.3171198]
[1744368362586,12.7533,1568.3,1568.1,0.9403398]
[1744368362895,6.37714,1568.1,1568.0,1.97728453]
[1744368363200,7.65176,1568.3,1568.0,3.34348453]
[1744368363363,6.37643,1568.3,1568.0,3.81277074]
[1744368363570,6.37714,1568.1,1568.0,0.81277074]
[1744368363790,6.37714,1568.1,1568.0,0.46928621]
[1744368364367,6.37795,1567.9,1567.8,1.5478]
[1744368364573,6.37836,1567.8,1567.3,1.6542]
[1744368364861,12.75959,1567.5,1567.4,0.81122231]
[1744368365469,14.41799,1567.5,1567.4,0.81122231]
[1744368366003,6.38081,1567.2,1566.9,11.50658907]
[1744368366203,6.38055,1567.3,1566.9,17.88846907]
[1744368366512,6.38084,1567.2,1567.0,0.46931935]
[1744368366666,12.76133,1567.3,1567.0,0.46931935]
[1744368366867,12.76133,1567.3,1567.1,0.34214049]
[1744368367102,6.3808,1567.2,1567.1,0.34214049]
[1744368367290,6.3808,1567.2,1567.1,0.81145984]
[1744368369119,6.3808,1567.2,1567.1,0.46931935]
[1744368369343,6.38123,1567.1,1566.8,3.46931935]
[1744368369487,12.76271,1567.1,1566.8,3.46931935]
[1744368369686,6.38174,1567.0,1566.8,3.46931935]
[1744368369888,12.76353,1567.0,1566.9,0.46931935]
[1744368370186,14.039883,1567.0,1566.9,0.46931935]
[1744368370804,6.38202,1566.9,1566.8,0.46931935]
[1744368371305,6.3809,1567.2,1566.8,3.46931935]
[1744368371504,6.3809,1567.2,1566.9,7.40116935]
[1744368371686,12.76106,1567.3,1567.0,1.5106]
[1744368371886,6.38049,1567.3,1567.1,0.46931935]
[1744368372278,12.7612,1567.3,1567.1,0.46931935]
[1744368372474,6.38121,1567.1,1566.9,0.34179305]
[1744368372723,6.38162,1567.0,1566.9,0.34179305]
[1744368373290,6.38121,1567.1,1566.9,0.81091136]
[1744368373483,12.7626,1567.1,1566.9,0.81091136]
[1744368373821,12.7626,1567.1,1566.9,0.34179305]
[1744368374022,14.03886,1567.1,1566.9,0.34179305]
[1744368374315,14.03886,1567.1,1566.7,17.29493]
[1744368374622,12.76344,1567.0,1566.7,10.9121]
[1744368374829,6.38171,1567.0,1566.7,4.5294]
[1744368375125,6.38162,1567.0,1566.4,6.38389]
[1744368375330,6.38267,1566.8,1566.5,4.5659]
[1744368375623,12.76526,1566.8,1566.5,10.94955]
[1744368375807,6.38259,1566.8,1566.5,10.94955]
[1744368375978,12.76523,1566.8,1566.5,10.94955]
[1744368376175,4.74872742,1567.7,1566.6,3.55]
[1744368376426,6.37949,1567.6,1567.4,1.5724]
[1744368376726,6.38026,1567.4,1567.1,1.5724]
[1744368376951,4.74872742,1567.4,1567.1,14.33448]
[1744368377247,4.74872742,1567.4,1566.9,1.6554]
[1744368378205,4.74872742,1567.4,1567.1,6.3811]
[1744368378452,4.74872742,1567.4,1567.0,6.3814]
[1744368378611,1.6136,1567.7,1567.1,6.3812]
[1744368378815,1.6136,1567.7,1567.3,1.5483]
[1744368379540,4.74872742,1567.8,1567.3,1.5483]
[1744368379541,4.74872742,1567.8,1567.3,2.03636889]
[1744368379707,1.6145,1567.7,1567.0,1.6113]
[1744368379907,1.6145,1567.7,1566.9,9.38188]
[1744368380210,6.38079,1567.3,1566.9,9.38188]
[1744368381023,6.38045,1567.3,1566.9,15.76389]
[1744368381359,6.38005,1567.4,1567.1,6.38119]
[1744368381564,6.37963,1567.5,1567.2,1.5455]
[1744368381751,6.37931,1567.6,1567.2,7.92625]
[1744368382067,7.99336,1567.7,1567.2,1.5455]
[1744368382236,6.37813,1567.9,1567.5,6.37928]
[1744368382433,6.37813,1567.9,1567.6,1.5969]
[1744368382653,12.75625,1567.9,1567.6,1.5969]
[1744368382826,6.37812,1567.9,1567.6,1.5969]
[1744368383022,6.37812,1567.9,1567.6,7.97603]
[1744368383546,12.75623,1567.9,1567.6,1.5969]
[1744368383951,6.37811,1567.9,1567.6,1.5969]
[1744368384123,12.75622,1567.9,1567.6,1.5969]
[1744368384324,12.75536,1568.0,1567.6,9.411583]
[1744368384564,6.37633,1568.3,1567.9,6.37781]
[1744368384731,6.37647,1568.3,1567.9,6.37781]
[1744368384933,11.12440742,1568.5,1568.2,3.0]
[1744368385167,6.37656,1568.3,1568.0,5.1469]
[1744368385368,11.12428742,1568.5,1567.9,1.275614]
[1744368385528,6.3785,1567.8,1567.5,1.5969]
[1744368385724,6.37799,1567.9,1567.6,3.0]
[1744368386037,6.37832,1567.9,1567.6,4.097628]
[1744368386563,6.37889,1567.7,1567.5,1.5969]
[1744368386947,12.75804,1567.7,1567.5,1.5969]
[1744368387128,6.37889,1567.7,1567.5,1.5969]
[1744368387447,12.75697,1567.8,1567.5,1.5969]
[1744368388018,6.37843,1567.8,1567.5,1.5969]
[1744368388362,6.37893,1567.7,1567.5,1.5969]
[1744368388559,6.37893,1567.7,1567.4,3.0]
[1744368388761,6.37768,1568.0,1567.6,6.37905]
[1744368388964,6.37768,1568.0,1567.6,12.75808]
[1744368389170,12.75548,1568.0,1567.6,6.37903]
[1744368389480,8.02129,1568.2,1567.7,7.99935]
[1744368389623,6.37736,1568.1,1567.7,15.477905]
[1744368389828,8.02124,1568.2,1567.7,2.720535]
[1744368389829,6.37776,1568.0,1567.7,2.720535]
[1744368390168,6.37848,1567.8,1567.6,3.0]
[1744368390334,6.37877,1567.7,1567.6,3.0]
[1744368390918,6.37877,1567.7,1567.5,4.5759]
[1744368391546,6.37806,1567.9,1567.5,10.95542]
[1744368391762,6.37881,1567.7,1567.5,4.5759]
[1744368392263,6.37848,1567.8,1567.6,0.15714426]
[1744368392471,12.75699,1567.8,1567.6,0.15714426]
[1744368392769,6.37877,1567.7,1567.6,0.15714426]
[1744368395794,7.96827,1568.0,1567.6,0.15714426]
[1744368395974,7.95826,1568.2,1567.6,1.75594426]
[1744368396178,6.37822,1567.9,1567.6,1.75594426]
[1744368396588,12.75652,1567.9,1567.6,4.75594426]
[1744368397254,6.37714,1568.1,1567.6,4.75594426]
[1744368397255,6.37853,1567.8,1567.6,0.15714426]
[1744368397455,6.37877,1567.7,1567.6,0.15714426]
[1744368400193,6.37853,1567.8,1567.6,0.15714426]
[1744368400397,6.37849,1567.8,1567.6,0.15714426]
[1744368401798,12.75704,1567.8,1567.6,0.15714426]
[1744368402296,6.37877,1567.7,1567.6,0.15714426]
[1744368402799,7.93217,1567.7,1567.6,0.15714426]
[1744368403986,17.63517,1567.7,1567.6,4.26e-06]
[1744368405994,10.93217,1567.7,1567.6,4.26e-06]
[1744368408590,6.38123,1567.1,1566.8,11.49286441]
[1744368408788,6.38123,1567.1,1566.9,1.14928644]
[1744368408991,6.38082,1567.2,1566.9,1.14928644]
[1744368409359,12.76182,1567.2,1566.9,1.14928644]
[1744368410286,6.38082,1567.2,1566.9,1.14928644]
[1744368410988,12.76195,1567.2,1566.9,1.14928644]
[1744368411188,12.76195,1567.2,1566.8,11.49286441]
[1744368411486,12.76192,1567.2,1566.8,11.49286441]
[1744368411862,12.76189,1567.2,1566.8,11.49275441]
[1744368412063,1.6286,1567.6,1567.0,6.38151]
[1744368412402,6.38008,1567.4,1567.1,4.5185]
[1744368412693,12.7602,1567.4,1567.1,4.5185]
[1744368413391,6.38051,1567.3,1567.1,4.5185]
[1744368414095,6.38051,1567.3,1567.1,3.0]
[1744368414291,6.38126,1567.1,1566.9,1.5481]
[1744368414594,12.7626,1567.1,1566.9,1.5481]
[1744368415190,12.7626,1567.1,1567.0,0.6]
[1744368415566,14.03886,1567.1,1567.0,0.6]
[1744368415766,0.359216,1566.8,1566.7,1.6619]
[1744368417196,0.359216,1566.8,1566.7,2.14412928]
[1744368418402,0.359216,1566.8,1566.7,1.6619]
[1744368418602,6.741646,1566.8,1566.5,4.5364]
[1744368418774,6.741646,1566.8,1566.7,3.0]
[1744368418775,0.359216,1566.8,1566.7,3.0]
[1744368420611,0.359216,1566.8,1566.5,3.74410872]
[1744368420789,0.359216,1566.8,1566.7,6.38284]
[1744368420988,0.359216,1566.8,1566.7,9.38284]
[1744368421308,0.359216,1566.8,1566.7,12.31747127]
[1744368421879,6.37958,1567.5,1567.2,1.5969]
[1744368422182,12.75861,1567.6,1567.2,10.97759]
[1744368422628,12.65303742,1567.7,1567.2,6.332767]
[1744368422781,11.12753742,1567.7,1567.4,3.0]
[1744368423102,4.74872742,1567.7,1567.5,1.5732]
[1744368423314,11.12759742,1567.7,1567.4,3.0]
[1744368423777,6.37928,1567.6,1567.4,3.0]
[1744368424184,6.37928,1567.6,1567.4,3.47063924]
[1744368425214,4.74872742,1567.7,1567.4,7.35474316]
[1744368425377,6.3792,1567.6,1567.4,0.97502316]
[1744368425579,6.37958,1567.5,1567.4,0.47063924]
[1744368425874,6.37958,1567.5,1567.3,1.5732]
[1744368426079,12.75934,1567.5,1567.3,1.5732]
[1744368426281,6.37958,1567.5,1567.3,1.5732]
[1744368426579,6.37882,1567.7,1567.3,4.5732]
[1744368426779,12.75787,1567.7,1567.3,12.048869]
[1744368426996,6.37882,1567.7,1567.3,5.668589]
[1744368427211,6.3793,1567.6,1567.3,5.668589]
[1744368427499,12.75794,1567.7,1567.3,12.048949]
[1744368428042,6.37882,1567.7,1567.3,18.429229]
[1744368428339,12.7578,1567.7,1567.4,1.8429229]
[1744368428501,6.37882,1567.7,1567.4,1.8429229]
[1744368429046,7.88944,1567.9,1567.4,8.2227829]
[1744368429341,6.37836,1567.8,1567.5,6.37946]
[1744368429500,6.37814,1567.9,1567.5,6.37946]
[1744368429501,12.75637,1567.9,1567.5,6.37946]
[1744368429702,12.75644,1567.9,1567.5,7.83973429]
[1744368430000,6.37849,1567.8,1567.5,1.46022429]
[1744368430394,6.37958,1567.5,1567.4,3.0]
[1744368430597,8.02634,1567.8,1567.1,1.6565]
[1744368430598,6.37877,1567.7,1567.1,1.6565]